fUST/lending_fUST_20240324
["ID","MTS","AMOUNT","RATE_DAILY","PERIOD"]
[320307273,1711282247842,-300.61357087,0.00022191,2]
[320307275,1711282247851,-500.3809056,0.00022191,2]
[320307278,1711282247861,-500.0,0.00022191,2]
[320307279,1711282247871,-500.0,0.00022191,2]
[320307281,1711282247881,-500.0,0.00022191,2]
[320307283,1711282247893,-500.0,0.00022191,2]
[320307286,1711282247903,-500.0,0.00022191,2]
[320307288,1711282247915,-500.0,0.00022191,2]
[320307290,1711282247924,-391.17222492,0.00022191,2]
[320307291,1711282247934,-500.0,0.00022191,2]
[320307294,1711282247944,-500.0,0.00022191,2]
[320307295,1711282247953,-500.0,0.00022191,2]
[320307297,1711282247963,-500.0,0.00022191,2]
[320307299,1711282247974,-151.0,0.00022191,2]
[320307301,1711282247983,-151.0,0.00022191,2]
[320307303,1711282247993,-151.0,0.00022191,2]
[320307305,1711282248003,-500.37116778,0.00022191,2]
[320307307,1711282248012,-500.0,0.00022191,2]
[320307309,1711282248022,-500.0,0.00022191,2]
[320307311,1711282248032,-500.0,0.00022191,2]
[320307313,1711282248042,-504.42585088,0.00022191,2]
[320307315,1711282248052,-500.0,0.00022191,2]
[320307317,1711282248062,-500.0,0.00022191,2]
[320307320,1711282248073,-500.0,0.00022191,2]
[320307321,1711282248083,-500.0,0.00022191,2]
[320307323,1711282248094,-500.0,0.00022191,2]
[320307325,1711282248104,-500.0,0.00022191,2]
[320307327,1711282248113,-500.0,0.00022191,2]
[320307329,1711282248122,-500.0,0.00022191,2]
[320307331,1711282248133,-500.0,0.00022191,2]
[320307333,1711282248143,-500.0,0.00022191,2]
[320307335,1711282248154,-500.0,0.00022191,2]
[320307337,1711282248164,-796.93,0.00022191,2]
[320307339,1711282248174,-500.0,0.00022191,2]
[320307341,1711282248184,-500.0,0.00022191,2]
[320307343,1711282248195,-439.25852278,0.00022191,2]
[320307345,1711282248205,-500.0,0.00022191,2]
[320307347,1711282248215,-575.50229856,0.00022191,2]
[320307349,1711282248227,-500.0,0.00022191,2]
[320307351,1711282248236,-154.365328,0.00022191,2]
[320307353,1711282248246,-154.365328,0.00022191,2]
[320307355,1711282248257,-154.365328,0.00022191,2]
[320307357,1711282248266,-154.365328,0.00022191,2]
[320307359,1711282248275,-154.365328,0.00022191,2]
[320307370,1711282248372,-154.365328,0.00022191,2]
[320307372,1711282248383,-500.0,0.00022191,2]
[320307374,1711282248393,-640.42,0.00022191,2]
[320307376,1711282248403,-587.97663117,0.00022191,2]
[320307378,1711282248414,-500.0,0.00022191,2]
[320307380,1711282248424,-500.0,0.00022191,2]
[320307381,1711282248434,-929.2,0.00022191,2]
[320307383,1711282248443,-500.0,0.00022191,2]
[320307385,1711282248452,-500.0,0.00022191,2]
[320307387,1711282248461,-182.47012551,0.00022191,2]
[320307389,1711282248471,-1001.96,0.00022191,2]
[320307391,1711282248484,-500.0,0.00022191,2]
[320307393,1711282248494,-151.0,0.00022191,2]
[320307395,1711282248504,-803.87,0.00022191,2]
[320307397,1711282248515,-500.0,0.00022191,2]
[320307399,1711282248525,-500.0,0.00022191,2]
[320307400,1711282248534,-9247.05,0.00022191,2]
[320307401,1711282248544,-500.0,0.00022191,2]
[320307402,1711282248555,-873.800889,0.00022191,2]
[320307403,1711282248565,-873.800889,0.00022191,2]
[320307405,1711282248575,-873.800889,0.00022191,2]
[320307407,1711282248585,-500.0,0.00022191,2]
[320307409,1711282248595,-873.800889,0.00022191,2]
[320307411,1711282248605,-873.800889,0.00022191,2]
[320307412,1711282248615,-873.800889,0.00022191,2]
[320307414,1711282248625,-319.44,0.00022191,2]
[320307417,1711282248636,-500.0,0.00022191,2]
[320307418,1711282248647,-165.05721308,0.00022191,2]
[320307420,1711282248657,-500.0,0.00022191,2]
[320307422,1711282248667,-500.0,0.00022191,2]
[320307425,1711282248676,-160.76604162,0.00022191,2]
[320307427,1711282248686,-500.0,0.00022191,2]
[320307428,1711282248697,-666.09,0.00022191,2]
[320307431,1711282248708,-163.322975,0.00022191,2]
[320307432,1711282248718,-163.322975,0.00022191,2]
[320307435,1711282248732,-163.322975,0.00022191,2]
[320307437,1711282248742,-1781.02,0.00022191,2]
[320307439,1711282248752,-163.322975,0.00022191,2]
[320307441,1711282248762,-163.322975,0.00022191,2]
[320307442,1711282248772,-163.322975,0.00022191,2]
[320307445,1711282248784,-500.0,0.00022191,2]
[320307446,1711282248795,-500.0,0.00022191,2]
[320307449,1711282248805,-2162.65,0.00022191,2]
[320307450,1711282248816,-500.0,0.00022191,2]
[320307452,1711282248828,-500.0,0.00022191,2]
[320307454,1711282248838,-7562.23,0.00022191,2]
[320307456,1711282248847,-503.74,0.00022191,2]
[320307458,1711282248856,-506.22286233,0.00022191,2]
[320307460,1711282248866,-825.24,0.00022191,2]
[320307462,1711282248876,-679.35,0.00022191,2]
[320307464,1711282248888,-506.06683909,0.00022191,2]
[320307466,1711282248897,-500.0,0.00022191,2]
[320307469,1711282248907,-2450.31,0.00022191,2]
[320307470,1711282248917,-503.65947275,0.00022191,2]
[320307472,1711282248927,-500.0,0.00022191,2]
[320307475,1711282248936,-766.06,0.00022191,2]
[320307476,1711282248945,-500.0,0.00022191,2]
[320307478,1711282248955,-559.81,0.00022191,2]
[320307481,1711282248965,-515.18,0.00022191,2]
[320307483,1711282248976,-502.80225362,0.00022191,2]
[320307485,1711282248986,-500.0,0.00022191,2]
[320307486,1711282248996,-500.0,0.00022191,2]
[320307489,1711282249005,-500.0,0.00022191,2]
[320307491,1711282249015,-500.0,0.00022191,2]
[320307492,1711282249025,-500.0,0.00022191,2]
[320307494,1711282249035,-500.0,0.00022191,2]
[320307496,1711282249044,-808.02,0.00022191,2]
[320307498,1711282249055,-500.0,0.00022191,2]
[320307500,1711282249064,-500.0,0.00022191,2]
[320307502,1711282249074,-500.0,0.00022191,2]
[320307505,1711282249083,-9867.26,0.00022191,2]
[320307506,1711282249092,-500.0,0.00022191,2]
[320307508,1711282249102,-500.0,0.00022191,2]
[320307510,1711282249113,-659.87,0.00022191,2]
[320307513,1711282249122,-500.0,0.00022191,2]
[320307515,1711282249131,-500.0,0.00022191,2]
[320307517,1711282249141,-500.0,0.00022191,2]
[320307518,1711282249150,-1490.85,0.00022191,2]
[320307520,1711282249159,-500.0,0.00022191,2]
[320307523,1711282249169,-1805.17,0.00022191,2]
[320307524,1711282249179,-500.0,0.00022191,2]
[320307527,1711282249190,-500.0,0.00022191,2]
[320307529,1711282249201,-500.0,0.00022191,2]
[320307530,1711282249212,-503.41475985,0.00022191,2]
[320307532,1711282249225,-500.0,0.00022191,2]
[320307535,1711282249235,-500.0,0.00022191,2]
[320307536,1711282249245,-503.82,0.00022191,2]
[320307539,1711282249257,-151.0,0.00022191,2]
[320307541,1711282249268,-151.0,0.00022191,2]
[320307542,1711282249279,-151.0,0.00022191,2]
[320307545,1711282249292,-1725.88,0.00022191,2]
[320307546,1711282249305,-500.0,0.00022191,2]
[320307549,1711282249316,-605.3,0.00022191,2]
[320307550,1711282249327,-500.0,0.00022191,2]
[320307552,1711282249340,-4388.18,0.00022191,2]
[320307555,1711282249353,-285.85357317,0.00022191,2]
[320307557,1711282249365,-500.0,0.00022191,2]
[320307559,1711282249377,-500.0,0.00022191,2]
[320307560,1711282249386,-526.04,0.00022191,2]
[320307562,1711282249397,-500.0,0.00022191,2]
[320307564,1711282249408,-502.50257956,0.00022191,2]
[320307566,1711282249419,-500.0,0.00022191,2]
[320307568,1711282249430,-1094.02,0.00022191,2]
[320307570,1711282249440,-513.97,0.00022191,2]
[320307572,1711282249453,-886.36,0.00022191,2]
[320307575,1711282249465,-403.6969564,0.00022192,2]
[320307576,1711282249478,-166.666666,0.00022431,2]
[320307578,1711282249489,-306.0,0.00022438,2]
[320307580,1711282249500,-201.8484782,0.00022438,2]
[320307583,1711282249510,-535.86936706,0.00022465,2]
[320307585,1711282249522,-759.49,0.00022465,2]
[320307587,1711282249533,-500.0,0.00022465,2]
[320307588,1711282249545,-500.0,0.00022465,2]
[320307591,1711282249556,-500.0,0.00022465,2]
[320307592,1711282249567,-503.93587156,0.00022465,2]
[320307595,1711282249578,-500.0,0.00022465,2]
[320307596,1711282249588,-362.34873196,0.00022465,2]
[320307599,1711282249599,-500.0,0.00022465,2]
[320307600,1711282249610,-500.0,0.00022465,2]
[320307603,1711282249621,-500.0,0.00022465,2]
[320307605,1711282249631,-500.0,0.00022465,2]
[320307606,1711282249642,-500.0,0.00022465,2]
[320307608,1711282249653,-500.0,0.00022465,2]
[320307610,1711282249663,-500.0,0.00022465,2]
[320307613,1711282249674,-500.0,0.00022465,2]
[320307615,1711282249687,-500.0,0.00022465,2]
[320307616,1711282249698,-501.99911804,0.00022465,2]
[320307619,1711282249710,-502.26808197,0.00022465,2]
[320307620,1711282249721,-501.60536921,0.00022465,2]
[320307623,1711282249733,-502.60688155,0.00022465,2]
[320307624,1711282249744,-502.32044239,0.00022465,2]
[320307626,1711282249754,-500.0,0.00022465,2]
[320307628,1711282249765,-502.02534514,0.00022465,2]
[320307630,1711282249777,-555.33952433,0.00022465,2]
[320307632,1711282249789,-500.0,0.00022465,2]
[320307635,1711282249799,-500.0,0.00022465,2]
[320307636,1711282249808,-501.89146425,0.00022465,2]
[320307639,1711282249818,-503.73728786,0.00022465,2]
[320307641,1711282249828,-428.65000488,0.00022465,2]
[320307643,1711282249837,-209.290831,0.00022465,2]
[320307645,1711282249847,-500.0,0.00022465,2]
[320307646,1711282249857,-502.4605563,0.00022465,2]
[320307649,1711282249869,-500.0,0.00022465,2]
[320307651,1711282249878,-500.0,0.00022465,2]
[320307653,1711282249888,-503.5742598,0.00022465,2]
[320307654,1711282249897,-500.0,0.00022465,2]
[320307656,1711282249906,-1017.21,0.00022465,2]
[320307658,1711282249917,-500.0,0.00022465,2]
[320307660,1711282249927,-501.2803997,0.00022465,2]
[320307662,1711282249936,-885.57,0.00022465,2]
[320307664,1711282249945,-500.0,0.00022465,2]
[320307666,1711282249955,-506.00663503,0.00022465,2]
[320307668,1711282249964,-504.04216507,0.00022465,2]
[320307670,1711282249974,-501.75104084,0.00022465,2]
[320307672,1711282249984,-500.0,0.00022465,2]
[320307674,1711282249993,-504.90617115,0.00022465,2]
[320307676,1711282250002,-502.54514971,0.00022465,2]
[320307678,1711282250012,-500.0,0.00022465,2]
[320307680,1711282250021,-500.0,0.00022465,2]
[320307682,1711282250030,-502.25111587,0.00022465,2]
[320307684,1711282250041,-500.0,0.00022465,2]
[320307686,1711282250051,-500.99433271,0.00022465,2]
[320307689,1711282250061,-500.0,0.00022465,2]
[320307690,1711282250070,-500.0,0.00022465,2]
[320307693,1711282250080,-500.0,0.00022465,2]
[320307695,1711282250089,-500.0,0.00022465,2]
[320307697,1711282250099,-500.0,0.00022465,2]
[320307699,1711282250108,-500.0,0.00022465,2]
[320307701,1711282250119,-500.0,0.00022465,2]
[320307703,1711282250128,-500.0,0.00022465,2]
[320307705,1711282250137,-500.0,0.00022465,2]
[320307707,1711282250146,-500.0,0.00022465,2]
[320307709,1711282250155,-500.0,0.00022465,2]
[320307711,1711282250164,-500.0,0.00022465,2]
[320307713,1711282250174,-151.0,0.00022465,2]
[320307714,1711282250184,-151.0,0.00022465,2]
[320307717,1711282250194,-151.0,0.00022465,2]
[320307719,1711282250206,-500.0,0.00022465,2]
[320307720,1711282250216,-500.0,0.00022465,2]
[320307723,1711282250227,-500.0,0.00022465,2]
[320307724,1711282250237,-500.0,0.00022465,2]
[320307726,1711282250246,-500.0,0.00022465,2]
[320307729,1711282250256,-500.0,0.00022465,2]
[320307730,1711282250266,-500.0,0.00022465,2]
[320307733,1711282250276,-500.0,0.00022465,2]
[320307734,1711282250286,-500.0,0.00022465,2]
[320307736,1711282250297,-500.0,0.00022465,2]
[320307739,1711282250307,-500.0,0.00022465,2]
[320307741,1711282250316,-371.99252928,0.00022465,2]
[320307743,1711282250327,-796.93,0.00022465,2]
[320307744,1711282250337,-503.11679637,0.00022465,2]
[320307747,1711282250349,-500.0,0.00022465,2]
[320307749,1711282250358,-502.97950647,0.00022465,2]
[320307751,1711282250368,-500.0,0.00022465,2]
[320307753,1711282250378,-154.365328,0.00022465,2]
[320307755,1711282250388,-154.365328,0.00022465,2]
[320307756,1711282250398,-154.365328,0.00022465,2]
[320307758,1711282250408,-500.0,0.00022465,2]
[320307760,1711282250417,-154.365328,0.00022465,2]
[320307762,1711282250427,-154.365328,0.00022465,2]
[320307764,1711282250438,-154.365323,0.00022465,2]
[320307766,1711282250447,-640.42,0.00022465,2]
[320307769,1711282250458,-500.0,0.00022465,2]
[320307771,1711282250469,-500.0,0.00022465,2]
[320307772,1711282250481,-929.2,0.00022465,2]
[320307774,1711282250491,-500.0,0.00022465,2]
[320307776,1711282250501,-555.30102419,0.00022465,2]
[320307778,1711282250510,-1001.96,0.00022465,2]
[320307781,1711282250521,-500.0,0.00022465,2]
[320307783,1711282250531,-151.0,0.00022465,2]
[320307785,1711282250541,-803.87,0.00022465,2]
[320307787,1711282250551,-500.0,0.00022465,2]
[320307789,1711282250561,-500.0,0.00022465,2]
[320307791,1711282250572,-9247.05,0.00022465,2]
[320307792,1711282250582,-873.800889,0.00022465,2]
[320307794,1711282250593,-873.800889,0.00022465,2]
[320307797,1711282250603,-873.800889,0.00022465,2]
[320307799,1711282250613,-500.0,0.00022465,2]
[320307801,1711282250624,-873.800889,0.00022465,2]
[320307803,1711282250634,-873.800889,0.00022465,2]
[320307804,1711282250644,-873.800886,0.00022465,2]
[320307807,1711282250655,-503.50659546,0.00022465,2]
[320307808,1711282250664,-500.0,0.00022465,2]
[320307819,1711282250762,-500.0,0.00022465,2]
[320307821,1711282250772,-500.0,0.00022465,2]
[320307823,1711282250785,-666.09,0.00022465,2]
[320307825,1711282250796,-163.322975,0.00022465,2]
[320307827,1711282250806,-1781.02,0.00022465,2]
[320307829,1711282250816,-163.322975,0.00022465,2]
[320307831,1711282250825,-163.322975,0.00022465,2]
[320307833,1711282250836,-163.322975,0.00022465,2]
[320307835,1711282250845,-163.322975,0.00022465,2]
[320307837,1711282250855,-163.322969,0.00022465,2]
[320307839,1711282250866,-473.24708317,0.00022465,2]
[320307841,1711282250876,-500.0,0.00022465,2]
[320307843,1711282250885,-2162.65,0.00022465,2]
[320307845,1711282250895,-500.0,0.00022465,2]
[320307848,1711282250909,-7562.23,0.00022465,2]
[320307849,1711282250919,-503.74,0.00022465,2]
[320307852,1711282250929,-825.24,0.00022465,2]
[320307854,1711282250939,-679.35,0.00022465,2]
[320307856,1711282250949,-500.0,0.00022465,2]
[320307858,1711282250958,-2450.31,0.00022465,2]
[320307859,1711282250968,-500.0,0.00022465,2]
[320307861,1711282250978,-766.06,0.00022465,2]
[320307863,1711282250987,-504.06378808,0.00022465,2]
[320307865,1711282250997,-515.18,0.00022465,2]
[320307868,1711282251007,-500.0,0.00022465,2]
[320307870,1711282251017,-500.0,0.00022465,2]
[320307871,1711282251027,-500.0,0.00022465,2]
[320307874,1711282251036,-500.0,0.00022465,2]
[320307875,1711282251046,-500.0,0.00022465,2]
[320307878,1711282251056,-808.02,0.00022465,2]
[320307880,1711282251065,-500.0,0.00022465,2]
[320307882,1711282251075,-429.5,0.00022465,2]
[320307883,1711282251085,-500.0,0.00022465,2]
[320307885,1711282251095,-9867.26,0.00022465,2]
[320307887,1711282251105,-500.0,0.00022465,2]
[320307890,1711282251114,-500.0,0.00022465,2]
[320307892,1711282251124,-659.87,0.00022465,2]
[320307894,1711282251133,-500.0,0.00022465,2]
[320307896,1711282251143,-500.0,0.00022465,2]
[320307898,1711282251152,-504.55512569,0.00022465,2]
[320307899,1711282251161,-1490.85,0.00022465,2]
[320307901,1711282251171,-500.0,0.00022465,2]
[320307903,1711282251181,-1805.17,0.00022465,2]
[320307906,1711282251193,-503.18389126,0.00022465,2]
[320307907,1711282251203,-500.0,0.00022465,2]
[320307909,1711282251214,-500.0,0.00022465,2]
[320307911,1711282251225,-500.0,0.00022465,2]
[320307913,1711282251237,-220.153592,0.00022465,2]
[320307915,1711282251247,-1725.88,0.00022465,2]
[320307917,1711282251258,-500.0,0.00022465,2]
[320307919,1711282251268,-605.3,0.00022465,2]
[320307921,1711282251278,-500.0,0.00022465,2]
[320307923,1711282251288,-4388.18,0.00022465,2]
[320307926,1711282251298,-552.3495737,0.00022465,2]
[320307927,1711282251308,-504.43803624,0.00022465,2]
[320307929,1711282251319,-1094.02,0.00022465,2]
[320307931,1711282251330,-886.36,0.00022465,2]
[320307933,1711282251341,-19153.63371765,0.000225,2]
[320307935,1711282251350,-12622.19507177,0.000225,2]
[320307937,1711282251359,-247.6533613,0.00022603,2]
[320307939,1711282251368,-759.49,0.00022739,2]
[320307941,1711282251377,-500.0,0.00022739,2]
[320307943,1711282251386,-500.0,0.00022739,2]
[320307945,1711282251396,-464.36,0.00022739,2]
[320307947,1711282251405,-500.0,0.00022739,2]
[320307949,1711282251415,-500.0,0.00022739,2]
[320307951,1711282251424,-500.0,0.00022739,2]
[320307953,1711282251433,-500.0,0.00022739,2]
[320307954,1711282251442,-200.43759893,0.00022739,2]
[320307956,1711282251451,-486.01118712,0.00022739,2]
[320307958,1711282251461,-263.55076026,0.00022739,2]
[320307960,1711282251471,-276.6,0.00022739,2]
[320307961,1711282251484,-500.0,0.00022739,2]
[320307963,1711282251494,-1017.21,0.00022739,2]
[320307965,1711282251504,-885.57,0.00022739,2]
[320307967,1711282251514,-500.0,0.00022739,2]
[320307969,1711282251525,-646.67737622,0.00022739,2]
[320307971,1711282251534,-152.00571195,0.00022739,2]
[320307973,1711282251546,-500.0,0.00022739,2]
[320307975,1711282251557,-500.0,0.00022739,2]
[320307977,1711282251567,-509.8034191,0.00022739,2]
[320307979,1711282251578,-500.0,0.00022739,2]
[320307981,1711282251588,-504.90056515,0.00022739,2]
[320307983,1711282251599,-500.0,0.00022739,2]
[320307985,1711282251608,-503.59996678,0.00022739,2]
[320307987,1711282251618,-500.0,0.00022739,2]
[320307989,1711282251629,-503.5068272,0.00022739,2]
[320307991,1711282251640,-500.0,0.00022739,2]
[320307993,1711282251650,-503.04799121,0.00022739,2]
[320307995,1711282251659,-500.0,0.00022739,2]
[320307996,1711282251670,-500.0,0.00022739,2]
[320307998,1711282251680,-500.0,0.00022739,2]
[320308000,1711282251693,-502.76510814,0.00022739,2]
[320308002,1711282251703,-405.95483744,0.00022739,2]
[320308004,1711282251713,-502.50632752,0.00022739,2]
[320308006,1711282251722,-500.0,0.00022739,2]
[320308008,1711282251734,-504.94699024,0.00022739,2]
[320308010,1711282251744,-500.0,0.00022739,2]
[320308012,1711282251754,-500.0,0.00022739,2]
[320308014,1711282251765,-500.0,0.00022739,2]
[320308016,1711282251777,-399.12542073,0.00022739,2]
[320308018,1711282251789,-503.92947366,0.00022739,2]
[320308021,1711282251805,-500.0,0.00022739,2]
[320308023,1711282251821,-796.93,0.00022739,2]
[320308025,1711282251836,-500.0,0.00022739,2]
[320308028,1711282251852,-500.0,0.00022739,2]
[320308030,1711282251863,-294.53021114,0.00022739,2]
[320308032,1711282251877,-640.42,0.00022739,2]
[320308034,1711282251891,-500.0,0.00022739,2]
[320308036,1711282251904,-500.0,0.00022739,2]
[320308039,1711282251918,-929.2,0.00022739,2]
[320308041,1711282251933,-500.0,0.00022739,2]
[320308043,1711282251946,-1001.96,0.00022739,2]
[320308045,1711282251958,-500.0,0.00022739,2]
[320308047,1711282251970,-250.02136318,0.00022739,2]
[320308049,1711282251985,-803.87,0.00022739,2]
[320308052,1711282251998,-500.0,0.00022739,2]
[320308054,1711282252011,-500.0,0.00022739,2]
[320308056,1711282252024,-9247.05,0.00022739,2]
[320308058,1711282252037,-500.0,0.00022739,2]
[320308061,1711282252051,-500.0,0.00022739,2]
[320308063,1711282252063,-505.12202545,0.00022739,2]
[320308065,1711282252074,-666.09,0.00022739,2]
[320308067,1711282252088,-1781.02,0.00022739,2]
[320308069,1711282252101,-2162.65,0.00022739,2]
[320308072,1711282252114,-500.0,0.00022739,2]
[320308074,1711282252126,-7562.23,0.00022739,2]
[320308076,1711282252137,-503.74,0.00022739,2]
[320308078,1711282252148,-825.24,0.00022739,2]
[320308080,1711282252160,-679.35,0.00022739,2]
[320308083,1711282252173,-2450.31,0.00022739,2]
[320308084,1711282252184,-500.0,0.00022739,2]
[320308087,1711282252197,-766.06,0.00022739,2]
[320308089,1711282252210,-515.18,0.00022739,2]
[320308091,1711282252223,-504.52774515,0.00022739,2]
[320308093,1711282252237,-500.0,0.00022739,2]
[320308095,1711282252247,-500.0,0.00022739,2]
[320308097,1711282252257,-420.10847245,0.00022739,2]
[320308099,1711282252267,-500.0,0.00022739,2]
[320308101,1711282252278,-808.02,0.00022739,2]
[320308104,1711282252290,-500.0,0.00022739,2]
[320308106,1711282252302,-500.0,0.00022739,2]
[320308108,1711282252314,-9867.26,0.00022739,2]
[320308110,1711282252326,-503.24934553,0.00022739,2]
[320308112,1711282252337,-500.0,0.00022739,2]
[320308114,1711282252348,-659.87,0.00022739,2]
[320308116,1711282252359,-503.90691378,0.00022739,2]
[320308118,1711282252370,-500.0,0.00022739,2]
[320308120,1711282252380,-1490.85,0.00022739,2]
[320308123,1711282252392,-500.0,0.00022739,2]
[320308125,1711282252403,-1805.17,0.00022739,2]
[320308127,1711282252414,-500.0,0.00022739,2]
[320308129,1711282252425,-500.0,0.00022739,2]
[320308131,1711282252436,-502.73705257,0.00022739,2]
[320308133,1711282252447,-1725.88,0.00022739,2]
[320308135,1711282252458,-500.0,0.00022739,2]
[320308137,1711282252468,-605.3,0.00022739,2]
[320308139,1711282252481,-500.0,0.00022739,2]
[320308141,1711282252492,-4388.18,0.00022739,2]
[320308143,1711282252504,-1094.02,0.00022739,2]
[320308145,1711282252515,-886.36,0.00022739,2]
[320308147,1711282252526,-166.666666,0.00022944,2]
[320308149,1711282252536,-759.49,0.00023013,2]
[320308151,1711282252547,-500.0,0.00023013,2]
[320308153,1711282252557,-524.02852461,0.00023013,2]
[320308155,1711282252568,-500.0,0.00023013,2]
[320308157,1711282252579,-500.0,0.00023013,2]
[320308160,1711282252590,-1017.21,0.00023013,2]
[320308162,1711282252601,-885.57,0.00023013,2]
[320308164,1711282252612,-173.31459803,0.00023013,2]
[320308166,1711282252624,-500.0,0.00023013,2]
[320308168,1711282252636,-500.0,0.00023013,2]
[320308170,1711282252647,-500.0,0.00023013,2]
[320308172,1711282252659,-500.0,0.00023013,2]
[320308174,1711282252672,-500.0,0.00023013,2]
[320308176,1711282252684,-500.0,0.00023013,2]
[320308178,1711282252696,-503.05397994,0.00023013,2]
[320308180,1711282252707,-500.0,0.00023013,2]
[320308183,1711282252718,-500.0,0.00023013,2]
[320308184,1711282252732,-500.0,0.00023013,2]
[320308187,1711282252743,-453.24629819,0.00023013,2]
[320308189,1711282252755,-500.0,0.00023013,2]
[320308191,1711282252766,-796.93,0.00023013,2]
[320308193,1711282252776,-500.0,0.00023013,2]
[320308195,1711282252788,-503.66066534,0.00023013,2]
[320308197,1711282252800,-640.42,0.00023013,2]
[320308199,1711282252812,-500.0,0.00023013,2]
[320308201,1711282252824,-500.0,0.00023013,2]
[320308203,1711282252836,-929.2,0.00023013,2]
[320308205,1711282252847,-500.0,0.00023013,2]
[320308207,1711282252857,-1001.96,0.00023013,2]
[320308209,1711282252869,-500.0,0.00023013,2]
[320308211,1711282252880,-803.87,0.00023013,2]
[320308214,1711282252891,-500.0,0.00023013,2]
[320308216,1711282252901,-9247.05,0.00023013,2]
[320308217,1711282252912,-500.0,0.00023013,2]
[320308219,1711282252921,-500.0,0.00023013,2]
[320308221,1711282252929,-666.09,0.00023013,2]
[320308223,1711282252939,-1781.02,0.00023013,2]
[320308225,1711282252949,-500.0,0.00023013,2]
[320308227,1711282252958,-2162.65,0.00023013,2]
[320308229,1711282252967,-7562.23,0.00023013,2]
[320308231,1711282252978,-503.74,0.00023013,2]
[320308233,1711282252987,-825.24,0.00023013,2]
[320308234,1711282252996,-679.35,0.00023013,2]
[320308249,1711282253139,-2450.31,0.00023013,2]
[320308252,1711282253152,-500.0,0.00023013,2]
[320308253,1711282253161,-766.06,0.00023013,2]
[320308255,1711282253171,-515.18,0.00023013,2]
[320308257,1711282253180,-500.0,0.00023013,2]
[320308260,1711282253196,-500.0,0.00023013,2]
[320308262,1711282253211,-808.02,0.00023013,2]
[320308264,1711282253221,-500.0,0.00023013,2]
[320308266,1711282253233,-500.0,0.00023013,2]
[320308268,1711282253244,-9867.26,0.00023013,2]
[320308270,1711282253256,-504.37696835,0.00023013,2]
[320308272,1711282253266,-659.87,0.00023013,2]
[320308273,1711282253277,-464.90833591,0.00023013,2]
[320308274,1711282253287,-1490.85,0.00023013,2]
[320308275,1711282253298,-504.64923772,0.00023013,2]
[320308276,1711282253308,-1805.17,0.00023013,2]
[320308277,1711282253318,-502.99151343,0.00023013,2]
[320308278,1711282253329,-500.0,0.00023013,2]
[320308279,1711282253340,-1725.88,0.00023013,2]
[320308280,1711282253350,-500.0,0.00023013,2]
[320308281,1711282253361,-605.3,0.00023013,2]
[320308282,1711282253372,-344.24,0.00023013,2]
[320308283,1711282253382,-4388.18,0.00023013,2]
[320308284,1711282253392,-1094.02,0.00023013,2]
[320308285,1711282253403,-886.36,0.00023013,2]
[320308286,1711282253413,-153.0,0.00023178,2]
[320308287,1711282253423,-176.6238756,0.00023178,2]
[320308288,1711282253434,-153.0,0.00023178,2]